[Event "Betsys MČR v online bleskovém šachu 2021"]
[Site "Chess.com"]
[Date "2021.04.17"]
[Round "10"]
[White "Ondre2836"]
[Black "Kijonker"]
[Result "0-1"]
[WhiteElo "1238"]
[BlackElo "1480"]
[TimeControl "180+1"]
[EndTime "10:40:29 PDT"]
[Termination "Uživatel Kijonker zvítězil na čas"]

1. e4 {[%clk 0:03:00.9]} 1... e6 {[%clk 0:02:59.4]} 2. d4 {[%clk 0:02:55.8]}
2... d5 {[%clk 0:02:59.1]} 3. Nc3 {[%clk 0:02:54.3]} 3... Ne7 {[%clk 0:02:50.1]}
4. e5 {[%clk 0:02:53.4]} 4... Nf5 {[%clk 0:02:46.9]} 5. Nf3 {[%clk 0:02:48.9]}
5... c5 {[%clk 0:02:46.3]} 6. Bf4 {[%clk 0:02:33.6]} 6... Qb6 {[%clk 0:02:45.2]}
7. Be3 {[%clk 0:02:12.4]} 7... Nxe3 {[%clk 0:02:37.7]} 8. fxe3 {[%clk
0:02:11.1]} 8... Nc6 {[%clk 0:02:37.7]} 9. Bd3 {[%clk 0:02:06.7]} 9... c4 {[%clk
0:02:19]} 10. Be2 {[%clk 0:02:01.2]} 10... Qxb2 {[%clk 0:02:18.9]} 11. Na4
{[%clk 0:01:40.1]} 11... Qb4+ {[%clk 0:02:18.5]} 12. Kf1 {[%clk 0:01:27.2]}
12... Qxa4 {[%clk 0:02:17.5]} 13. Qd2 {[%clk 0:01:22.4]} 13... Bb4 {[%clk
0:02:14.2]} 14. Qd1 {[%clk 0:01:18.6]} 14... Bc3 {[%clk 0:02:11.4]} 15. Rb1
{[%clk 0:01:04.8]} 15... Qxa2 {[%clk 0:02:08.4]} 16. Kf2 {[%clk 0:01:01.8]}
16... Qa5 {[%clk 0:02:02.3]} 17. Qc1 {[%clk 0:01:01]} 17... Bb4 {[%clk
0:01:53.4]} 18. Qb2 {[%clk 0:00:56.4]} 18... c3 {[%clk 0:01:48.2]} 19. Qb3
{[%clk 0:00:53.2]} 19... Qa3 {[%clk 0:01:37.6]} 20. Qxa3 {[%clk 0:00:49.8]}
20... Bxa3 {[%clk 0:01:37.3]} 21. Bb5 {[%clk 0:00:48.9]} 21... Bd7 {[%clk
0:01:33.2]} 22. Bd3 {[%clk 0:00:38.2]} 22... Nb4 {[%clk 0:01:27.6]} 23. Ke2
{[%clk 0:00:32.3]} 23... Nxd3 {[%clk 0:01:22.6]} 24. Kxd3 {[%clk 0:00:31.9]}
24... Bb2 {[%clk 0:01:21.1]} 25. Rxb2 {[%clk 0:00:28.7]} 25... cxb2 {[%clk
0:01:20.1]} 26. Rb1 {[%clk 0:00:28.8]} 26... Bb5+ {[%clk 0:01:14.8]} 27. Kd2
{[%clk 0:00:28]} 27... Rc8 {[%clk 0:01:10.1]} 28. Rxb2 {[%clk 0:00:26.4]} 28...
Ba6 {[%clk 0:01:09.3]} 29. h4 {[%clk 0:00:19.8]} 29... O-O {[%clk 0:01:08.4]}
30. g4 {[%clk 0:00:18.8]} 30... Rc6 {[%clk 0:01:03.1]} 31. g5 {[%clk 0:00:15.8]}
31... Rb6 {[%clk 0:01:01.2]} 32. Ra2 {[%clk 0:00:10.6]} 32... Rc8 {[%clk
0:00:57.5]} 33. h5 {[%clk 0:00:05.7]} 33... Rbc6 {[%clk 0:00:45.6]} 34. Rb2
{[%clk 0:00:01.6]} 34... b5 {[%clk 0:00:36.2]} 0-1

[Event "Betsys MČR v online bleskovém šachu 2021"]
[Site "Chess.com"]
[Date "2021.04.17"]
[Round "10"]
[White "Drak1961"]
[Black "RousekJan"]
[Result "1-0"]
[WhiteElo "2065"]
[BlackElo "1810"]
[TimeControl "180+1"]
[EndTime "10:40:30 PDT"]
[Termination "Uživatel Drak1961 zvítězil na čas"]

1. d4 {[%clk 0:02:57.4]} 1... d5 {[%clk 0:02:59.2]} 2. Nf3 {[%clk 0:02:57.3]}
2... Nc6 {[%clk 0:02:58.1]} 3. g3 {[%clk 0:02:56.8]} 3... Nf6 {[%clk 0:02:57.4]}
4. Bg2 {[%clk 0:02:56.2]} 4... g6 {[%clk 0:02:51]} 5. O-O {[%clk 0:02:55.7]}
5... Bg7 {[%clk 0:02:51.5]} 6. b3 {[%clk 0:02:54.5]} 6... O-O {[%clk 0:02:51.4]}
7. Bb2 {[%clk 0:02:54.2]} 7... Bd7 {[%clk 0:02:50.1]} 8. c4 {[%clk 0:02:52.3]}
8... Qc8 {[%clk 0:02:47.2]} 9. Nc3 {[%clk 0:02:43.6]} 9... dxc4 {[%clk
0:02:37.1]} 10. bxc4 {[%clk 0:02:42.6]} 10... Bh3 {[%clk 0:02:37.5]} 11. d5
{[%clk 0:02:37.9]} 11... Bxg2 {[%clk 0:02:36.2]} 12. Kxg2 {[%clk 0:02:36.2]}
12... Nd8 {[%clk 0:02:34.2]} 13. Qc2 {[%clk 0:02:30.7]} 13... c6 {[%clk
0:02:28.7]} 14. Rac1 {[%clk 0:02:23.4]} 14... cxd5 {[%clk 0:02:27.4]} 15. cxd5
{[%clk 0:02:20]} 15... Qd7 {[%clk 0:02:14.6]} 16. e4 {[%clk 0:02:14.3]} 16...
Rc8 {[%clk 0:02:05]} 17. Qb3 {[%clk 0:02:13.6]} 17... b6 {[%clk 0:01:54.9]} 18.
e5 {[%clk 0:02:09]} 18... Ne8 {[%clk 0:01:32.1]} 19. Rfe1 {[%clk 0:02:05.2]}
19... f6 {[%clk 0:01:24.3]} 20. e6 {[%clk 0:01:56.4]} 20... Qb7 {[%clk
0:01:22.8]} 21. Ba3 {[%clk 0:01:51.4]} 21... f5 {[%clk 0:01:16.5]} 22. d6 {[%clk
0:01:45.1]} 22... Bxc3 {[%clk 0:01:10.6]} 23. dxe7 {[%clk 0:01:32.6]} 23... Rf6
{[%clk 0:00:36.3]} 24. exd8=Q {[%clk 0:01:21.3]} 24... Rxd8 {[%clk 0:00:37.2]}
25. Qxc3 {[%clk 0:01:15.5]} 25... g5 {[%clk 0:00:36.7]} 26. Qc6 {[%clk 0:01:07]}
26... Qxc6 {[%clk 0:00:21.7]} 27. Rxc6 {[%clk 0:01:05.5]} 27... Rd3 {[%clk
0:00:21.4]} 28. Be7 {[%clk 0:00:57.1]} 28... g4 {[%clk 0:00:18]} 29. Ng5 {[%clk
0:00:54.6]} 29... Rg6 {[%clk 0:00:17.6]} 30. Rc8 {[%clk 0:00:51.1]} 30... Kg7
{[%clk 0:00:14.5]} 31. Rxe8 {[%clk 0:00:49]} 31... f4 {[%clk 0:00:14.7]} 32.
gxf4 {[%clk 0:00:47.7]} 32... h5 {[%clk 0:00:14.7]} 33. f5 {[%clk 0:00:46.6]}
33... Rh6 {[%clk 0:00:13.4]} 34. Bf8+ {[%clk 0:00:44.8]} 34... Kf6 {[%clk
0:00:12.1]} 35. Bxh6 {[%clk 0:00:43.1]} 35... Kxf5 {[%clk 0:00:11.1]} 36. Rf8+
{[%clk 0:00:40.9]} 36... Kg6 {[%clk 0:00:11.1]} 37. e7 {[%clk 0:00:40.2]} 37...
g3 {[%clk 0:00:08.4]} 38. e8=Q+ {[%clk 0:00:37.3]} 1-0

[Event "Betsys MČR v online bleskovém šachu 2021"]
[Site "Chess.com"]
[Date "2021.04.17"]
[Round "10"]
[White "DominikS3"]
[Black "Kamilotka"]
[Result "1/2-1/2"]
[WhiteElo "1343"]
[BlackElo "1594"]
[TimeControl "180+1"]
[EndTime "10:40:31 PDT"]
[Termination "Remíza opakováním pozice"]

1. d4 {[%clk 0:03:00.9]} 1... d5 {[%clk 0:02:59.9]} 2. c4 {[%clk 0:03:00.5]}
2... e6 {[%clk 0:03:00]} 3. Nc3 {[%clk 0:02:59.8]} 3... Nf6 {[%clk 0:02:59.5]}
4. Nf3 {[%clk 0:02:59.1]} 4... Be7 {[%clk 0:02:59.4]} 5. Bg5 {[%clk 0:02:57.5]}
5... O-O {[%clk 0:02:57.9]} 6. e3 {[%clk 0:02:57]} 6... h6 {[%clk 0:02:57.7]} 7.
Bh4 {[%clk 0:02:56.1]} 7... dxc4 {[%clk 0:02:57.3]} 8. Bxc4 {[%clk 0:02:54.7]}
8... b6 {[%clk 0:02:54.4]} 9. O-O {[%clk 0:02:53.4]} 9... Bb7 {[%clk 0:02:53.6]}
10. Rc1 {[%clk 0:02:52.4]} 10... Nh7 {[%clk 0:02:50.5]} 11. Bxe7 {[%clk
0:02:50.8]} 11... Qxe7 {[%clk 0:02:49.8]} 12. Be2 {[%clk 0:02:51]} 12... Nd7
{[%clk 0:02:41.4]} 13. Nb5 {[%clk 0:02:47.9]} 13... c6 {[%clk 0:02:35.9]} 14.
Nc3 {[%clk 0:02:45.5]} 14... Ng5 {[%clk 0:02:25.6]} 15. Nxg5 {[%clk 0:02:43.6]}
15... Qxg5 {[%clk 0:02:25.3]} 16. Bf3 {[%clk 0:02:43]} 16... Nf6 {[%clk
0:02:20.3]} 17. a3 {[%clk 0:02:41]} 17... Nd5 {[%clk 0:02:18.7]} 18. Nxd5 {[%clk
0:02:39.4]} 18... cxd5 {[%clk 0:02:14.3]} 19. Rc7 {[%clk 0:02:37.4]} 19... Ba6
{[%clk 0:02:12.7]} 20. Re1 {[%clk 0:02:35.4]} 20... Rac8 {[%clk 0:02:11.9]} 21.
Qc2 {[%clk 0:02:33]} 21... Rxc7 {[%clk 0:02:07.1]} 22. Qxc7 {[%clk 0:02:32.2]}
22... Ra8 {[%clk 0:01:38.8]} 23. h3 {[%clk 0:02:22.1]} 23... Qd8 {[%clk
0:01:37.5]} 24. Qxd8+ {[%clk 0:02:19.8]} 24... Rxd8 {[%clk 0:01:37.2]} 25. Rc1
{[%clk 0:02:19]} 25... Bc4 {[%clk 0:01:36.9]} 26. Bd1 {[%clk 0:02:16.3]} 26...
a5 {[%clk 0:01:30.1]} 27. b3 {[%clk 0:02:15]} 27... Bb5 {[%clk 0:01:26.9]} 28.
a4 {[%clk 0:02:14.3]} 28... Be8 {[%clk 0:01:10.5]} 29. Be2 {[%clk 0:02:11.9]}
29... Rd7 {[%clk 0:01:03]} 30. Bb5 {[%clk 0:02:09.7]} 30... Re7 {[%clk
0:00:59.5]} 31. Bxe8 {[%clk 0:02:04.3]} 31... Rxe8 {[%clk 0:00:59]} 32. Rc6
{[%clk 0:02:03.9]} 32... Rb8 {[%clk 0:00:58.5]} 33. Kf1 {[%clk 0:02:02]} 33...
Kf8 {[%clk 0:00:47.3]} 34. Ke2 {[%clk 0:02:00.8]} 34... Ke7 {[%clk 0:00:47.1]}
35. Rc7+ {[%clk 0:01:59.8]} 35... Ke8 {[%clk 0:00:42.7]} 36. Ra7 {[%clk
0:01:57.9]} 36... Rc8 {[%clk 0:00:35.1]} 37. Ra6 {[%clk 0:01:53.3]} 37... Rc6
{[%clk 0:00:32.9]} 38. Kd3 {[%clk 0:01:51.2]} 38... Kd7 {[%clk 0:00:29]} 39. f3
{[%clk 0:01:46.3]} 39... Kc8 {[%clk 0:00:25.5]} 40. Ra7 {[%clk 0:01:42.8]} 40...
Rc7 {[%clk 0:00:24.3]} 41. Rxc7+ {[%clk 0:01:41.3]} 41... Kxc7 {[%clk
0:00:24.3]} 42. e4 {[%clk 0:01:39.7]} 42... Kd6 {[%clk 0:00:21]} 43. e5+ {[%clk
0:01:38.4]} 43... Kd7 {[%clk 0:00:20.7]} 44. f4 {[%clk 0:01:37.6]} 44... f6
{[%clk 0:00:20.2]} 45. g4 {[%clk 0:01:34.6]} 45... Ke7 {[%clk 0:00:14.5]} 46.
exf6+ {[%clk 0:01:31.9]} 46... gxf6 {[%clk 0:00:11.5]} 47. Ke3 {[%clk
0:01:30.7]} 47... Kf7 {[%clk 0:00:10]} 48. f5 {[%clk 0:01:25]} 48... e5 {[%clk
0:00:07.2]} 49. dxe5 {[%clk 0:01:23.8]} 49... fxe5 {[%clk 0:00:07]} 50. Kd3
{[%clk 0:01:22.9]} 50... Kf6 {[%clk 0:00:06]} 51. Ke3 {[%clk 0:01:22.2]} 51...
Kg5 {[%clk 0:00:05.7]} 52. Kd3 {[%clk 0:01:21.2]} 52... Kf6 {[%clk 0:00:05.3]}
53. Ke3 {[%clk 0:01:20.5]} 53... Kg5 {[%clk 0:00:05.4]} 54. Kd3 {[%clk 0:01:20]}
54... Kf6 {[%clk 0:00:05.3]} 1/2-1/2

[Event "Betsys MČR v online bleskovém šachu 2021"]
[Site "Chess.com"]
[Date "2021.04.17"]
[Round "10"]
[White "JonasFadrny"]
[Black "Newyork6"]
[Result "1-0"]
[WhiteElo "737"]
[BlackElo "329"]
[TimeControl "180+1"]
[EndTime "10:40:31 PDT"]
[Termination "Uživatel JonasFadrny zvítězil matem"]

1. e4 {[%clk 0:03:00.9]} 1... d6 {[%clk 0:02:57.3]} 2. Nf3 {[%clk 0:03:00.4]}
2... e6 {[%clk 0:02:57.2]} 3. Nc3 {[%clk 0:02:58.7]} 3... Be7 {[%clk 0:02:56.8]}
4. d4 {[%clk 0:02:55.4]} 4... Nf6 {[%clk 0:02:55.8]} 5. Bf4 {[%clk 0:02:53.5]}
5... O-O {[%clk 0:02:54.6]} 6. Bc4 {[%clk 0:02:51.2]} 6... b6 {[%clk 0:02:47.3]}
7. O-O {[%clk 0:02:50.1]} 7... Bb7 {[%clk 0:02:47.3]} 8. Re1 {[%clk 0:02:45.7]}
8... c6 {[%clk 0:02:38.6]} 9. Bd3 {[%clk 0:02:43.6]} 9... a6 {[%clk 0:02:36.3]}
10. Be3 {[%clk 0:02:41.5]} 10... Kh8 {[%clk 0:02:33.5]} 11. Qd2 {[%clk
0:02:39.5]} 11... g6 {[%clk 0:02:32]} 12. Rad1 {[%clk 0:02:37.8]} 12... g5
{[%clk 0:02:31.1]} 13. a3 {[%clk 0:02:33.8]} 13... Rg8 {[%clk 0:02:28.7]} 14. b3
{[%clk 0:02:28.7]} 14... Qf8 {[%clk 0:02:27.9]} 15. b4 {[%clk 0:02:26.8]} 15...
g4 {[%clk 0:02:25.7]} 16. Nh4 {[%clk 0:02:24.2]} 16... g3 {[%clk 0:02:24.8]} 17.
fxg3 {[%clk 0:02:19.8]} 17... Qg7 {[%clk 0:02:14.2]} 18. Bf2 {[%clk 0:02:13.8]}
18... Nh5 {[%clk 0:02:14]} 19. Be2 {[%clk 0:02:05.4]} 19... Nxg3 {[%clk
0:02:12.2]} 20. hxg3 {[%clk 0:02:04]} 20... Bxh4 {[%clk 0:02:04.2]} 21. gxh4
{[%clk 0:02:02.8]} 21... e5 {[%clk 0:01:57.9]} 22. Bf3 {[%clk 0:02:01.3]} 22...
f6 {[%clk 0:01:51]} 23. d5 {[%clk 0:01:58.3]} 23... h5 {[%clk 0:01:50.4]} 24.
dxc6 {[%clk 0:01:57.2]} 24... d5 {[%clk 0:01:45.7]} 25. cxb7 {[%clk 0:01:43.9]}
25... Ra7 {[%clk 0:01:43.8]} 26. Bxb6 {[%clk 0:01:36.1]} 26... Ra8 {[%clk
0:01:36.6]} 27. bxa8=Q {[%clk 0:01:35.2]} 27... Nd7 {[%clk 0:01:37.5]} 28. Qaxd5
{[%clk 0:01:23.8]} 28... Nc5 {[%clk 0:01:25.8]} 29. Bxc5 {[%clk 0:01:21.4]}
29... a5 {[%clk 0:01:23.4]} 30. bxa5 {[%clk 0:01:19.3]} 30... Qg6 {[%clk
0:01:17.5]} 31. a6 {[%clk 0:01:14.6]} 31... f5 {[%clk 0:00:53.8]} 32. exf5
{[%clk 0:01:06]} 32... Qg3 {[%clk 0:00:52.7]} 33. Qxe5+ {[%clk 0:00:48.4]} 33...
Rg7 {[%clk 0:00:48.6]} 34. Qxg3 {[%clk 0:00:44.2]} 34... Rxg3 {[%clk 0:00:46.7]}
35. Qd8+ {[%clk 0:00:40.5]} 35... Rg8 {[%clk 0:00:37.9]} 36. Bd4+ {[%clk
0:00:36.3]} 36... Kh7 {[%clk 0:00:21.1]} 37. Re7+ {[%clk 0:00:34.4]} 37... Kh6
{[%clk 0:00:14.8]} 38. Be3+ {[%clk 0:00:33.2]} 38... Rg5 {[%clk 0:00:07.9]} 39.
Bxg5# {[%clk 0:00:32.2]} 1-0

[Event "Betsys MČR v online bleskovém šachu 2021"]
[Site "Chess.com"]
[Date "2021.04.17"]
[Round "10"]
[White "JuliliaR"]
[Black "ZdenekRomanek"]
[Result "1-0"]
[WhiteElo "1413"]
[BlackElo "1561"]
[TimeControl "180+1"]
[EndTime "10:40:32 PDT"]
[Termination "Uživatel JuliliaR zvítězil matem"]

1. d4 {[%clk 0:03:00.9]} 1... e6 {[%clk 0:02:59.4]} 2. c4 {[%clk 0:03:00]} 2...
d5 {[%clk 0:02:58.8]} 3. Nf3 {[%clk 0:02:53.1]} 3... Nf6 {[%clk 0:02:58.1]} 4.
Nc3 {[%clk 0:02:47.9]} 4... Be7 {[%clk 0:02:56.4]} 5. Bf4 {[%clk 0:02:41.8]}
5... c6 {[%clk 0:02:54.3]} 6. cxd5 {[%clk 0:02:38.3]} 6... exd5 {[%clk
0:02:52.6]} 7. e3 {[%clk 0:02:35.7]} 7... O-O {[%clk 0:02:51.2]} 8. Bd3 {[%clk
0:02:33.9]} 8... Nbd7 {[%clk 0:02:47.7]} 9. O-O {[%clk 0:02:32.7]} 9... Nh5
{[%clk 0:02:44.8]} 10. Bg3 {[%clk 0:02:23]} 10... Nxg3 {[%clk 0:02:43.4]} 11.
hxg3 {[%clk 0:02:22.6]} 11... Nf6 {[%clk 0:02:36.5]} 12. Rb1 {[%clk 0:02:18.2]}
12... Re8 {[%clk 0:02:29.2]} 13. b4 {[%clk 0:02:14.5]} 13... a6 {[%clk
0:02:25.5]} 14. a4 {[%clk 0:02:12.5]} 14... Bd6 {[%clk 0:02:23]} 15. b5 {[%clk
0:02:07.6]} 15... Ne4 {[%clk 0:02:21.2]} 16. Qc2 {[%clk 0:01:59]} 16... Nxc3
{[%clk 0:02:09.1]} 17. Qxc3 {[%clk 0:01:57.5]} 17... cxb5 {[%clk 0:02:06.1]} 18.
axb5 {[%clk 0:01:55.8]} 18... Bd7 {[%clk 0:02:03]} 19. bxa6 {[%clk 0:01:50]}
19... bxa6 {[%clk 0:02:02.1]} 20. Qb3 {[%clk 0:01:43.3]} 20... Be6 {[%clk
0:01:43.6]} 21. Rfc1 {[%clk 0:01:33.7]} 21... a5 {[%clk 0:01:39.5]} 22. Nd2
{[%clk 0:01:23.7]} 22... Bb4 {[%clk 0:01:29.5]} 23. Nf3 {[%clk 0:01:15.7]} 23...
Qd7 {[%clk 0:01:25.4]} 24. Ne5 {[%clk 0:01:12.9]} 24... Qb7 {[%clk 0:01:13.4]}
25. Qa4 {[%clk 0:01:02.1]} 25... f6 {[%clk 0:00:59.4]} 26. Nf3 {[%clk
0:00:58.8]} 26... Reb8 {[%clk 0:00:54.7]} 27. Rc2 {[%clk 0:00:43.4]} 27... Bd7
{[%clk 0:00:52.6]} 28. Qa2 {[%clk 0:00:37.9]} 28... Bb5 {[%clk 0:00:50.7]} 29.
Rbc1 {[%clk 0:00:36.7]} 29... Bxd3 {[%clk 0:00:46]} 30. Rc7 {[%clk 0:00:32.6]}
30... Qb5 {[%clk 0:00:39]} 31. R1c6 {[%clk 0:00:19.7]} 31... Bc4 {[%clk
0:00:35.5]} 32. Qb1 {[%clk 0:00:17]} 32... h6 {[%clk 0:00:18]} 33. Qg6 {[%clk
0:00:14.9]} 33... Rf8 {[%clk 0:00:15.5]} 34. Qxg7# {[%clk 0:00:14.3]} 1-0

[Event "Betsys MČR v online bleskovém šachu 2021"]
[Site "Chess.com"]
[Date "2021.04.17"]
[Round "10"]
[White "AdeeJa"]
[Black "LightningAttack_2000"]
[Result "0-1"]
[WhiteElo "1645"]
[BlackElo "1884"]
[TimeControl "180+1"]
[EndTime "10:40:33 PDT"]
[Termination "Uživatel LightningAttack_2000 zvítězil matem"]

1. e4 {[%clk 0:03:00.9]} 1... c5 {[%clk 0:02:59]} 2. Nc3 {[%clk 0:02:59.8]} 2...
Nc6 {[%clk 0:02:58.2]} 3. Bb5 {[%clk 0:02:58.5]} 3... Nd4 {[%clk 0:02:54.2]} 4.
Bc4 {[%clk 0:02:58.5]} 4... a6 {[%clk 0:02:50.6]} 5. d3 {[%clk 0:02:57.6]} 5...
b5 {[%clk 0:02:50.1]} 6. Bd5 {[%clk 0:02:56.8]} 6... Rb8 {[%clk 0:02:50.3]} 7.
Nf3 {[%clk 0:02:54.6]} 7... e6 {[%clk 0:02:49]} 8. Bb3 {[%clk 0:02:49.1]} 8...
Be7 {[%clk 0:02:36.5]} 9. Nxd4 {[%clk 0:02:49.1]} 9... cxd4 {[%clk 0:02:36.6]}
10. e5 {[%clk 0:02:46.3]} 10... dxc3 {[%clk 0:02:35.2]} 11. bxc3 {[%clk
0:02:41.6]} 11... Qc7 {[%clk 0:02:32.8]} 12. O-O {[%clk 0:02:38.1]} 12... Qxe5
{[%clk 0:02:29.7]} 13. f4 {[%clk 0:02:37.4]} 13... Qc7 {[%clk 0:02:27.5]} 14. f5
{[%clk 0:02:36.9]} 14... Nf6 {[%clk 0:02:26.4]} 15. Bg5 {[%clk 0:02:25.8]} 15...
O-O {[%clk 0:02:23.9]} 16. Kh1 {[%clk 0:02:20.3]} 16... h6 {[%clk 0:02:16.9]}
17. Bh4 {[%clk 0:02:17]} 17... Bb7 {[%clk 0:02:11.2]} 18. Qe2 {[%clk 0:01:44.4]}
18... a5 {[%clk 0:02:06.6]} 19. Rae1 {[%clk 0:01:37.9]} 19... a4 {[%clk
0:02:05.8]} 20. fxe6 {[%clk 0:01:22.9]} 20... axb3 {[%clk 0:02:01.2]} 21. exd7
{[%clk 0:01:22.8]} 21... Qxd7 {[%clk 0:02:00]} 22. Qxe7 {[%clk 0:01:20.7]} 22...
Qxe7 {[%clk 0:02:00.1]} 23. Rxe7 {[%clk 0:01:20.2]} 23... bxa2 {[%clk
0:01:57.3]} 24. Ra1 {[%clk 0:01:11.6]} 24... Nd5 {[%clk 0:01:54.1]} 25. Rd7
{[%clk 0:01:07.3]} 25... Nxc3 {[%clk 0:01:51.9]} 26. Bg3 {[%clk 0:01:06]} 26...
Bc6 {[%clk 0:01:31.4]} 27. Rc7 {[%clk 0:00:39.1]} 27... Rbc8 {[%clk 0:01:31.1]}
28. Ra7 {[%clk 0:00:39]} 28... Rfe8 {[%clk 0:01:26.6]} 29. Be1 {[%clk
0:00:29.1]} 29... b4 {[%clk 0:01:19.7]} 30. h3 {[%clk 0:00:22.2]} 30... Re2
{[%clk 0:01:18.4]} 31. Bxc3 {[%clk 0:00:19.9]} 31... bxc3 {[%clk 0:01:18.3]} 32.
R7xa2 {[%clk 0:00:18.1]} 32... Rxg2 {[%clk 0:01:17.7]} 33. d4 {[%clk 0:00:15.7]}
33... Rxc2+ {[%clk 0:01:17]} 34. Kg1 {[%clk 0:00:15.8]} 34... Rxa2 {[%clk
0:01:17.2]} 35. Rxa2 {[%clk 0:00:15.3]} 35... Bd5 {[%clk 0:01:17.5]} 36. Rc2
{[%clk 0:00:13.5]} 36... Be4 {[%clk 0:01:17.6]} 37. Rc1 {[%clk 0:00:13.3]} 37...
c2 {[%clk 0:01:18]} 38. Kf2 {[%clk 0:00:13.5]} 38... Rb8 {[%clk 0:01:17.8]} 39.
Ke3 {[%clk 0:00:12.1]} 39... Rb1 {[%clk 0:01:17.7]} 40. Kd2 {[%clk 0:00:05.7]}
40... Rxc1 {[%clk 0:01:17.7]} 41. Kxc1 {[%clk 0:00:05.7]} 41... Kf8 {[%clk
0:01:18.2]} 42. d5 {[%clk 0:00:05.7]} 42... Ke7 {[%clk 0:01:18.4]} 43. h4 {[%clk
0:00:05.2]} 43... Kd6 {[%clk 0:01:18.7]} 44. h5 {[%clk 0:00:04.9]} 44... Kxd5
{[%clk 0:01:19.2]} 45. Kd2 {[%clk 0:00:05.1]} 45... f5 {[%clk 0:01:19.4]} 46.
Kc1 {[%clk 0:00:05]} 46... f4 {[%clk 0:01:19.9]} 47. Kd2 {[%clk 0:00:05.1]}
47... f3 {[%clk 0:01:20.4]} 48. Kc1 {[%clk 0:00:05.4]} 48... f2 {[%clk
0:01:20.9]} 49. Kd2 {[%clk 0:00:05.6]} 49... f1=N+ {[%clk 0:01:16.1]} 50. Kc1
{[%clk 0:00:04.2]} 50... Ng3 {[%clk 0:01:15.8]} 51. Kd2 {[%clk 0:00:04.2]} 51...
Kd4 {[%clk 0:01:15.5]} 52. Kc1 {[%clk 0:00:03.7]} 52... Ne2+ {[%clk 0:01:15.8]}
53. Kd2 {[%clk 0:00:03.6]} 53... c1=Q+ {[%clk 0:01:16]} 54. Kxe2 {[%clk
0:00:03.8]} 54... Qe3+ {[%clk 0:01:16]} 55. Kf1 {[%clk 0:00:03.7]} 55... Qf3+
{[%clk 0:01:16.2]} 56. Ke1 {[%clk 0:00:03.7]} 56... Qg3+ {[%clk 0:01:13.9]} 57.
Kf1 {[%clk 0:00:03.7]} 57... Bd3# {[%clk 0:01:14]} 0-1

[Event "Betsys MČR v online bleskovém šachu 2021"]
[Site "Chess.com"]
[Date "2021.04.17"]
[Round "10"]
[White "Bolavey_Kotnik"]
[Black "Herracek"]
[Result "0-1"]
[WhiteElo "2360"]
[BlackElo "2610"]
[TimeControl "180+1"]
[EndTime "10:40:34 PDT"]
[Termination "Uživatel Herracek zvítězil po vzdání soupeře"]

1. e4 {[%clk 0:03:00.1]} 1... c5 {[%clk 0:02:59.5]} 2. Nf3 {[%clk 0:02:59]} 2...
Nc6 {[%clk 0:02:58.8]} 3. Bb5 {[%clk 0:02:58.6]} 3... g6 {[%clk 0:02:56.3]} 4.
O-O {[%clk 0:02:57.4]} 4... Bg7 {[%clk 0:02:56.3]} 5. c3 {[%clk 0:02:57.3]} 5...
Nf6 {[%clk 0:02:56.3]} 6. Re1 {[%clk 0:02:55.4]} 6... O-O {[%clk 0:02:55.6]} 7.
d4 {[%clk 0:02:54.9]} 7... d5 {[%clk 0:02:55.7]} 8. e5 {[%clk 0:02:53.7]} 8...
Ne4 {[%clk 0:02:56.2]} 9. h3 {[%clk 0:02:42]} 9... Qb6 {[%clk 0:02:55]} 10. Bd3
{[%clk 0:02:14.6]} 10... cxd4 {[%clk 0:02:50.3]} 11. cxd4 {[%clk 0:02:14.7]}
11... Bf5 {[%clk 0:02:48.5]} 12. Nc3 {[%clk 0:01:50.9]} 12... Rfd8 {[%clk
0:01:54]} 13. Ne2 {[%clk 0:01:14.5]} 13... Rac8 {[%clk 0:01:46.9]} 14. a3 {[%clk
0:01:07]} 14... Nxe5 {[%clk 0:01:33.4]} 15. Nxe5 {[%clk 0:00:39.7]} 15... Bxe5
{[%clk 0:01:30.2]} 16. Be3 {[%clk 0:00:34]} 16... Bg7 {[%clk 0:01:27.4]} 17. b4
{[%clk 0:00:32]} 17... Rc7 {[%clk 0:01:11.5]} 18. g4 {[%clk 0:00:21.4]} 18...
Bd7 {[%clk 0:01:03.8]} 19. Nf4 {[%clk 0:00:20.5]} 19... e6 {[%clk 0:00:59.7]}
20. Bf1 {[%clk 0:00:14.8]} 20... Rdc8 {[%clk 0:00:53.9]} 21. Bg2 {[%clk
0:00:14.6]} 21... Nc3 {[%clk 0:00:50.8]} 22. Qf3 {[%clk 0:00:13.6]} 22... Bxd4
{[%clk 0:00:41.3]} 23. h4 {[%clk 0:00:13.2]} 23... Bxe3 {[%clk 0:00:40.3]} 24.
Rxe3 {[%clk 0:00:13.5]} 24... Ne4 {[%clk 0:00:37.6]} 25. h5 {[%clk 0:00:11.1]}
25... Rc2 {[%clk 0:00:37.6]} 26. Rf1 {[%clk 0:00:09.5]} 26... Qd4 {[%clk
0:00:31.7]} 27. h6 {[%clk 0:00:08]} 27... R8c3 {[%clk 0:00:30.8]} 28. Nd3 {[%clk
0:00:05.3]} 28... Bb5 {[%clk 0:00:23.4]} 29. Rd1 {[%clk 0:00:02.6]} 29... Bxd3
{[%clk 0:00:20.2]} 30. Rdxd3 {[%clk 0:00:02.5]} 30... Rxd3 {[%clk 0:00:20.6]}
31. Rxd3 {[%clk 0:00:03.4]} 31... Qxf2+ {[%clk 0:00:21.1]} 32. Qxf2 {[%clk
0:00:03.9]} 32... Nxf2 {[%clk 0:00:20.3]} 33. Bxd5 {[%clk 0:00:02.9]} 33... Nxd3
{[%clk 0:00:20.1]} 0-1